Workbook

Sheet OSNOVA
B1: Kartiranje tačaka | C1: Iscrtavanje linija | N1: tacka od 1-4000
A2: 1 | B2: Tačka | N2: broj od 4001-8000
B3: Broj | E3: Ugao texta | G3: 0
A4: 1 | B4: Kota | E4: Visina texta | G4: 0.2 | N4: kota od 8001-12000
E5: Ime LAYER-a | F5: za tačke | G5: T | I5: Crtanje linije od tačke do tačke
F6: za broj | G6: Broj
A7: Broj | B7: Y | C7: X | D7: H | F7: za kote | G7: Kota | I7: Tačke za crtanje lin/poly | O7: Tacka | Q7: Broj | S7: Kota
A8: P1 | B8: 7433029.318 | C8: 4743697.235 | D8: 1102.238 | E8: Boja LAYER-a | F8: za tačke | G8: 1 | I8: 54 | J8: =IF(I8="","",VLOOKUP(I8,$A$8:$D$2002,2,TRUE)) -> 7432957.419 | K8: =IF(I8="","",VLOOKUP(I8,$A$8:$D$2002,3,TRUE)) -> 4743567.446 | L8: -LAYER | N8: =IF(O8="","",1) -> 1 | O8: =IF(A2="","","-LAYER") -> -LAYER | P8: =IF(Q8="","",4001) ->  | Q8: =IF($A$3="","","-LAYER") ->  | R8: =IF(S8="","",8001) -> 8001 | S8: =IF($A$4="","","-LAYER") -> -LAYER | T8: 1 | U8: =IFERROR(SMALL($N$8:$N$14000,1),"") -> 1 | V8: =IF(AND(U8>0,VLOOKUP(U8,$N$8:$O$12000,2,TRUE)=0),"",VLOOKUP(U8,$N$8:$O$12000,2,TRUE)) -> -LAYER
A9: P2 | B9: 7432978.66 | C9: 4743620.959 | D9: 1103.084 | F9: za broj | G9: 1 | I9: 71 | J9: =IF(I9="","",VLOOKUP(I9,$A$8:$D$2002,2,TRUE)) -> 7432947.559 | K9: =IF(I9="","",VLOOKUP(I9,$A$8:$D$2002,3,TRUE)) -> 4743577.91 | L9: M | N9: =IF(AND(O9="",O10=""),"",N8+1) -> 2 | O9: M | Q9: =IF(Q8="","","M") ->  | R9: 8002 | S9: M | T9: 2 | U9: =IFERROR(SMALL($N$8:$N$14000,T9),"") -> 2 | V9: M
A10: P3 | B10: 7432933.135 | C10: 4743593.381 | D10: 1113.112 | F10: za kote | G10: 18 | I10: 62 | J10: 7432932.901 | K10: 4743543.508 | L10: =G11 -> sala | N10: 3 | O10: =G5 -> T | Q10: =IF(Q8="","",$G$6) ->  | R10: 8003 | S10: =$G$7 -> Kota | T10: 3 | U10: =IFERROR(SMALL($N$8:$N$14000,T10),"") -> 3 | V10: T
A11: P4 | B11: 7432919.831 | C11: 4743647.813 | D11: 1117.033 | E11: Ime LAYER-a za linije ili polilinije | G11: sala | I11: 58 | J11: 7432952.516 | K11: 4743562.601 | L11: C | N11: 4 | O11: C | Q11: =IF(Q8="","","C") ->  | R11: 8004 | S11: C | T11: 4 | U11: 4 | V11: C
A12: P5 | B12: 7432996.131 | C12: 4743748.069 | D12: 1130.196 | I12: 58 | J12: 7432952.516 | K12: 4743562.601 | L12: =G15 -> 6 | N12: 5 | O12: =G8 -> 1 | Q12: =IF(Q8="","",$G$9) ->  | R12: 8005 | S12: =$G$10 -> 18 | T12: 5 | U12: 5 | V12: 1
A13: P6a | B13: 7432996.137 | C13: 4743748.057 | D13: 1130.216 | E13: Crtanje za (1)-linije ili (2)-polilinije | G13: 1 | I13: 62 | J13: 7432932.901 | K13: 4743543.508 | N13: =IF(AND(O13="",O14=""),"",N12+1) -> 6 | Q13: =IF(Q8="","","") ->  | R13: 8006 | T13: 6 | U13: 6
A14: P7a | B14: 7432882.026 | C14: 4743379.024 | D14: 1105.331 | I14: 66 | J14: 7432940.427 | K14: 4743564.781 | L14: L | N14: =IF(AND(O14="",O15=""),"",N13+1) -> 7 | O14: *Cancel* | Q14: =IF(Q8="","","*Cancel*") ->  | R14: 8007 | S14: *Cancel* | T14: 7 | U14: 7 | V14: =IF(AND(U14>0,VLOOKUP(U14,$N$8:$O$12000,2,TRUE)=0),"",VLOOKUP(U14,$N$8:$O$12000,2,TRUE)) -> *Cancel*
A15: 10 | B15: 7432927.258 | C15: 4743531.883 | D15: 1104.057 | E15: Boja LAYER-a za linije | G15: 6 | I15: 70 | J15: 7432947.005 | K15: 4743578.151 | L15: C | N15: 8 | O15: PDMODE | Q15: =IF($Q$8="","",CONCATENATE("-TEXT J BL ",B8+$G$4,",",C8+$G$4," ",$G$4," ",$G$3," ",A8)) ->  | R15: 8008 | S15: =IF(AND($A$4="",A8=""),"",IF(AND($A$4=1,A8=""),"",CONCATENATE("-TEXT J TL ",B8+$G$4,",",C8-$G$4," ",$G$4," ",$G$3," ",D8))) -> -TEXT J TL 7433029.518,4743697.035 0.2 0 1102.238 | T15: 8 | U15: 8 | V15: PDMODE
A16: 11 | B16: 7432930.401 | C16: 4743530.786 | D16: 1103.969 | E16: Debljina linije (0-2.11) | G16: 0.1 | I16: 74 | J16: 7432953.028 | K16: 4743589.874 | L16: LW | N16: 9 | O16: =G17 -> 0 | P16: =IF(AND(Q16="",Q17=""),"",P15+1) ->  | Q16: =IF($Q$8="","",CONCATENATE("-TEXT J BL ",B9+$G$4,",",C9+$G$4," ",$G$4," ",$G$3," ",A9)) ->  | R16: =IF(AND(S16="",S17=""),"",R15+1) -> 8009 | S16: -TEXT J TL 7432978.86,4743620.759 0.2 0 1103.084 | T16: 9 | U16: 9
A17: 12 | B17: 7432935.774 | C17: 4743531.923 | D17: 1103.927 | E17: Oblik tačke | G17: 0 | I17: 78 | J17: 7432959.047 | K17: 4743586.187 | L17: =G16 -> 0.1 | N17: 10 | O17: PDSIZE | Q17: =IF($Q$8="","",CONCATENATE("-TEXT J BL ",B10+$G$4,",",C10+$G$4," ",$G$4," ",$G$3," ",A10)) ->  | R17: 8010 | S17: -TEXT J TL 7432933.335,4743593.181 0.2 0 1113.112 | T17: 10 | U17: 10 | V17: PDSIZE
A18: 13 | B18: 7432937.887 | C18: 4743528.025 | D18: 1104.174 | E18: Veličina tačke | G18: 2 | I18: 82 | J18: 7432959.62 | K18: 4743601.396 | N18: 11 | O18: =G18 -> 2 | R18: 8011 | S18: -TEXT J TL 7432920.031,4743647.613 0.2 0 1117.033 | T18: 11 | U18: 11 | V18: 2
A19: 14 | B19: 7432939.323 | C19: 4743523.621 | D19: 1104.392 | E19: Boja | F19: Broj boje | I19: 86 | J19: 7432965.931 | K19: 4743598.33 | L19: *Cancel* | N19: 12 | O19: =IF(A8="","",CONCATENATE("_point ")) -> _point | R19: 8012 | S19: -TEXT J TL 7432996.331,4743747.869 0.2 0 1130.196 | T19: 12 | U19: 12 | V19: _point
A20: 15 | B20: 7432942.805 | C20: 4743524.271 | D20: 1104.298 | F20: 7 | I20: 90 | J20: 7432979.592 | K20: 4743597.229 | L20: =IF(G13="","",IF(G13=1,CONCATENATE("l ",J8,",",K8),IF(G13=2,CONCATENATE("pl ",J8,",",K8),""))) -> l 7432957.419,4743567.446 | N20: 13 | O20: =IF(A8="","",CONCATENATE(B8,",",C8," ")) -> 7433029.318,4743697.235 | R20: 8013 | S20: -TEXT J TL 7432996.337,4743747.857 0.2 0 1130.216 | T20: 13 | U20: 13 | V20: 7433029.318,4743697.235
A21: 16 | B21: 7432940.761 | C21: 4743530.424 | D21: 1104.18 | F21: 1 | I21: 94 | J21: 7432962.613 | K21: 4743604.411 | L21: =IF(I9="","",CONCATENATE(J9,",",K9)) -> 7432947.559,4743577.91 | N21: 14 | O21: =IF(A9="","",CONCATENATE(B9,",",C9," ")) -> 7432978.66,4743620.959 | R21: 8014 | S21: -TEXT J TL 7432882.226,4743378.824 0.2 0 1105.331 | T21: 14 | U21: 14 | V21: 7432978.66,4743620.959
A22: 17 | B22: 7432938.85 | C22: 4743537.107 | D22: 1103.862 | F22: 2 | I22: 98 | J22: 7432959.147 | K22: 4743606.34 | L22: =IF(I10="","",CONCATENATE(J10,",",K10)) -> 7432932.901,4743543.508 | N22: 15 | O22: 7432933.135,4743593.381 | R22: 8015 | S22: -TEXT J TL 7432927.458,4743531.683 0.2 0 1104.057 | T22: 15 | U22: 15 | V22: 7432933.135,4743593.381
A23: 18 | B23: 7432938.515 | C23: 4743544.578 | D23: 1103.766 | F23: 5 | I23: 102 | J23: 7432943.359 | K23: 4743575.801 | L23: 7432952.516,4743562.601 | N23: 16 | O23: 7432919.831,4743647.813 | R23: 8016 | S23: -TEXT J TL 7432930.601,4743530.586 0.2 0 1103.969 | T23: 16 | U23: 16 | V23: 7432919.831,4743647.813
A24: 19 | B24: 7432939.182 | C24: 4743549.538 | D24: 1103.75 | F24: 6 | I24: 106 | J24: 7432924.814 | K24: 4743539.969 | L24: 7432952.516,4743562.601 | N24: 17 | O24: 7432996.131,4743748.069 | R24: 8017 | S24: -TEXT J TL 7432935.974,4743531.723 0.2 0 1103.927 | T24: 17 | U24: 17 | V24: 7432996.131,4743748.069
A25: 20 | B25: 7432936.667 | C25: 4743551.1 | D25: 1103.833 | F25: 3 | I25: 110 | J25: 7432910.1 | K25: 4743522.902 | L25: 7432932.901,4743543.508 | N25: 18 | O25: 7432996.137,4743748.057 | R25: 8018 | S25: -TEXT J TL 7432938.087,4743527.825 0.2 0 1104.174 | T25: 18 | U25: 18 | V25: 7432996.137,4743748.057
A26: 21 | B26: 7432933.939 | C26: 4743552.523 | D26: 1103.936 | F26: 18 | I26: 114 | J26: 7432918.88 | K26: 4743543.473 | L26: 7432940.427,4743564.781 | N26: 19 | O26: 7432882.026,4743379.024 | R26: =IF(AND(S26="",S27=""),"",R25+1) -> 8019 | S26: =IF(AND($A$4="",A19=""),"",IF(AND($A$4=1,A19=""),"",CONCATENATE("-TEXT J TL ",B19+$G$4,",",C19-$G$4," ",$G$4," ",$G$3," ",D19))) -> -TEXT J TL 7432939.523,4743523.421 0.2 0 1104.392 | T26: 19 | U26: 19 | V26: 7432882.026,4743379.024
A27: 22 | B27: 7432933.416 | C27: 4743552.963 | D27: 1103.988 | L27: 7432947.005,4743578.151 | N27: 20 | O27: 7432927.258,4743531.883 | R27: 8020 | S27: -TEXT J TL 7432943.005,4743524.071 0.2 0 1104.298 | T27: 20 | U27: 20 | V27: 7432927.258,4743531.883
A28: 23 | B28: 7432933.128 | C28: 4743553.231 | D28: 1104.044 | L28: 7432953.028,4743589.874 | N28: 21 | O28: 7432930.401,4743530.786 | R28: 8021 | S28: -TEXT J TL 7432940.961,4743530.224 0.2 0 1104.18 | T28: 21 | U28: 21 | V28: 7432930.401,4743530.786
A29: 24 | B29: 7432951.416 | C29: 4743563.391 | D29: 1103.511 | L29: 7432959.047,4743586.187 | N29: 22 | O29: 7432935.774,4743531.923 | R29: 8022 | S29: -TEXT J TL 7432939.05,4743536.907 0.2 0 1103.862 | T29: 22 | U29: 22 | V29: 7432935.774,4743531.923
A30: 25 | B30: 7432945.441 | C30: 4743553.511 | D30: 1103.724 | L30: 7432959.62,4743601.396 | N30: 23 | O30: 7432937.887,4743528.025 | R30: 8023 | S30: -TEXT J TL 7432938.715,4743544.378 0.2 0 1103.766 | T30: 23 | U30: 23 | V30: 7432937.887,4743528.025
A31: 26 | B31: 7432941.246 | C31: 4743547.829 | D31: 1103.911 | L31: 7432965.931,4743598.33 | N31: 24 | O31: 7432939.323,4743523.621 | R31: 8024 | S31: -TEXT J TL 7432939.382,4743549.338 0.2 0 1103.75 | T31: 24 | U31: 24 | V31: 7432939.323,4743523.621
A32: 27 | B32: 7432939.444 | C32: 4743540.767 | D32: 1103.935 | L32: 7432979.592,4743597.229 | N32: 25 | O32: 7432942.805,4743524.271 | R32: 8025 | S32: -TEXT J TL 7432936.867,4743550.9 0.2 0 1103.833 | T32: 25 | U32: 25 | V32: 7432942.805,4743524.271
A33: 28 | B33: 7432940.984 | C33: 4743532.011 | D33: 1104.245 | L33: 7432962.613,4743604.411 | N33: 26 | O33: 7432940.761,4743530.424 | R33: 8026 | S33: -TEXT J TL 7432934.139,4743552.323 0.2 0 1103.936 | T33: 26 | U33: 26 | V33: 7432940.761,4743530.424
A34: 29 | B34: 7432943.41 | C34: 4743529.177 | D34: 1104.824 | L34: 7432959.147,4743606.34 | N34: 27 | O34: 7432938.85,4743537.107 | R34: 8027 | S34: -TEXT J TL 7432933.616,4743552.763 0.2 0 1103.988 | T34: 27 | U34: 27 | V34: 7432938.85,4743537.107
A35: 30 | B35: 7432947.139 | C35: 4743528.948 | D35: 1105.118 | L35: 7432943.359,4743575.801 | N35: 28 | O35: 7432938.515,4743544.578 | R35: 8028 | S35: -TEXT J TL 7432933.328,4743553.031 0.2 0 1104.044 | T35: 28 | U35: 28 | V35: 7432938.515,4743544.578
A36: 31 | B36: 7432950.292 | C36: 4743529.022 | D36: 1104.375 | L36: 7432924.814,4743539.969 | N36: 29 | O36: 7432939.182,4743549.538 | R36: 8029 | S36: -TEXT J TL 7432951.616,4743563.191 0.2 0 1103.511 | T36: 29 | U36: 29 | V36: 7432939.182,4743549.538
A37: 32 | B37: 7432951.955 | C37: 4743536.079 | D37: 1104.713 | L37: 7432910.1,4743522.902 | N37: 30 | O37: 7432936.667,4743551.1 | R37: 8030 | S37: -TEXT J TL 7432945.641,4743553.311 0.2 0 1103.724 | T37: 30 | U37: 30 | V37: 7432936.667,4743551.1
A38: 33 | B38: 7432948.832 | C38: 4743538.694 | D38: 1105.791 | L38: 7432918.88,4743543.473 | N38: 31 | O38: 7432933.939,4743552.523 | R38: 8031 | S38: -TEXT J TL 7432941.446,4743547.629 0.2 0 1103.911 | T38: 31 | U38: 31 | V38: 7432933.939,4743552.523
A39: 34 | B39: 7432944.23 | C39: 4743542.445 | D39: 1105.815 | N39: 32 | O39: 7432933.416,4743552.963 | R39: 8032 | S39: -TEXT J TL 7432939.644,4743540.567 0.2 0 1103.935 | T39: 32 | U39: 32 | V39: 7432933.416,4743552.963
A40: 35 | B40: 7432947.279 | C40: 4743551.083 | D40: 1105.758 | N40: 33 | O40: 7432933.128,4743553.231 | R40: 8033 | S40: -TEXT J TL 7432941.184,4743531.811 0.2 0 1104.245 | T40: 33 | U40: 33 | V40: 7432933.128,4743553.231
A41: 36 | B41: 7432951.039 | C41: 4743549.256 | D41: 1105.757 | N41: 34 | O41: 7432951.416,4743563.391 | R41: 8034 | S41: -TEXT J TL 7432943.61,4743528.977 0.2 0 1104.824 | T41: 34 | U41: 34 | V41: 7432951.416,4743563.391
A42: 37 | B42: 7432954.415 | C42: 4743546.74 | D42: 1105.406 | N42: 35 | O42: 7432945.441,4743553.511 | R42: 8035 | S42: -TEXT J TL 7432947.339,4743528.748 0.2 0 1105.118 | T42: 35 | U42: 35 | V42: 7432945.441,4743553.511
A43: 38 | B43: 7432951.082 | C43: 4743558.395 | D43: 1105.008 | N43: 36 | O43: 7432941.246,4743547.829 | R43: 8036 | S43: -TEXT J TL 7432950.492,4743528.822 0.2 0 1104.375 | T43: 36 | U43: 36 | V43: 7432941.246,4743547.829
A44: 39 | B44: 7432952.982 | C44: 4743557.272 | D44: 1104.951 | N44: 37 | O44: 7432939.444,4743540.767 | R44: 8037 | S44: -TEXT J TL 7432952.155,4743535.879 0.2 0 1104.713 | T44: 37 | U44: 37 | V44: 7432939.444,4743540.767
A45: 40 | B45: 7432956.212 | C45: 4743555.474 | D45: 1104.57 | N45: 38 | O45: 7432940.984,4743532.011 | R45: 8038 | S45: -TEXT J TL 7432949.032,4743538.494 0.2 0 1105.791 | T45: 38 | U45: 38 | V45: 7432940.984,4743532.011
A46: 41 | B46: 7432959.555 | C46: 4743556.035 | D46: 1103.818 | N46: 39 | O46: 7432943.41,4743529.177 | R46: 8039 | S46: -TEXT J TL 7432944.43,4743542.245 0.2 0 1105.815 | T46: 39 | U46: 39 | V46: 7432943.41,4743529.177
A47: 42 | B47: 7432963.241 | C47: 4743566.254 | D47: 1101.904 | N47: 40 | O47: 7432947.139,4743528.948 | R47: 8040 | S47: -TEXT J TL 7432947.479,4743550.883 0.2 0 1105.758 | T47: 40 | U47: 40 | V47: 7432947.139,4743528.948
A48: 43 | B48: 7432964.096 | C48: 4743567.533 | D48: 1101.806 | N48: 41 | O48: 7432950.292,4743529.022 | R48: 8041 | S48: -TEXT J TL 7432951.239,4743549.056 0.2 0 1105.757 | T48: 41 | U48: 41 | V48: 7432950.292,4743529.022
A49: 44 | B49: 7432963.663 | C49: 4743566.941 | D49: 1101.516 | N49: 42 | O49: 7432951.955,4743536.079 | R49: 8042 | S49: -TEXT J TL 7432954.615,4743546.54 0.2 0 1105.406 | T49: 42 | U49: 42 | V49: 7432951.955,4743536.079
A50: 45 | B50: 7432964.758 | C50: 4743569.042 | D50: 1102.682 | N50: 43 | O50: 7432948.832,4743538.694 | R50: 8043 | S50: -TEXT J TL 7432951.282,4743558.195 0.2 0 1105.008 | T50: 43 | U50: 43 | V50: 7432948.832,4743538.694
A51: 46 | B51: 7432960.211 | C51: 4743571.808 | D51: 1103.178 | N51: 44 | O51: 7432944.23,4743542.445 | R51: 8044 | S51: -TEXT J TL 7432953.182,4743557.072 0.2 0 1104.951 | T51: 44 | U51: 44 | V51: 7432944.23,4743542.445
A52: 47 | B52: 7432959.249 | C52: 4743570.645 | D52: 1102.372 | N52: 45 | O52: 7432947.279,4743551.083 | R52: 8045 | S52: -TEXT J TL 7432956.412,4743555.274 0.2 0 1104.57 | T52: 45 | U52: 45 | V52: 7432947.279,4743551.083
A53: 48 | B53: 7432959.106 | C53: 4743569.573 | D53: 1102.223 | N53: 46 | O53: 7432951.039,4743549.256 | R53: 8046 | S53: -TEXT J TL 7432959.755,4743555.835 0.2 0 1103.818 | T53: 46 | U53: 46 | V53: 7432951.039,4743549.256
A54: 49 | B54: 7432958.301 | C54: 4743568.605 | D54: 1102.489 | N54: 47 | O54: 7432954.415,4743546.74 | R54: 8047 | S54: -TEXT J TL 7432963.441,4743566.054 0.2 0 1101.904 | T54: 47 | U54: 47 | V54: 7432954.415,4743546.74
A55: 50 | B55: 7432957.07 | C55: 4743570.971 | D55: 1102.235 | N55: 48 | O55: 7432951.082,4743558.395 | R55: 8048 | S55: -TEXT J TL 7432964.296,4743567.333 0.2 0 1101.806 | T55: 48 | U55: 48 | V55: 7432951.082,4743558.395
A56: 51 | B56: 7432956.83 | C56: 4743570.236 | D56: 1102.222 | N56: 49 | O56: 7432952.982,4743557.272 | R56: 8049 | S56: -TEXT J TL 7432963.863,4743566.741 0.2 0 1101.516 | T56: 49 | U56: 49 | V56: 7432952.982,4743557.272
A57: 52 | B57: 7432955.281 | C57: 4743570.994 | D57: 1103.015 | N57: 50 | O57: 7432956.212,4743555.474 | R57: 8050 | S57: -TEXT J TL 7432964.958,4743568.842 0.2 0 1102.682 | T57: 50 | U57: 50 | V57: 7432956.212,4743555.474
A58: 53 | B58: 7432956.361 | C58: 4743568.14 | D58: 1103.241 | N58: 51 | O58: 7432959.555,4743556.035 | R58: 8051 | S58: -TEXT J TL 7432960.411,4743571.608 0.2 0 1103.178 | T58: 51 | U58: 51 | V58: 7432959.555,4743556.035
A59: 54 | B59: 7432957.419 | C59: 4743567.446 | D59: 1103.605 | N59: 52 | O59: 7432963.241,4743566.254 | R59: 8052 | S59: -TEXT J TL 7432959.449,4743570.445 0.2 0 1102.372 | T59: 52 | U59: 52 | V59: 7432963.241,4743566.254
A60: 55 | B60: 7432954.858 | C60: 4743566.96 | D60: 1103.625 | N60: 53 | O60: 7432964.096,4743567.533 | R60: 8053 | S60: -TEXT J TL 7432959.306,4743569.373 0.2 0 1102.223 | T60: 53 | U60: 53 | V60: 7432964.096,4743567.533
A61: 56 | B61: 7432953.212 | C61: 4743566.775 | D61: 1103.442 | N61: 54 | O61: 7432963.663,4743566.941 | R61: 8054 | S61: -TEXT J TL 7432958.501,4743568.405 0.2 0 1102.489 | T61: 54 | U61: 54 | V61: 7432963.663,4743566.941
A62: 57 | B62: 7432951.629 | C62: 4743563.794 | D62: 1103.45 | N62: 55 | O62: 7432964.758,4743569.042 | R62: 8055 | S62: -TEXT J TL 7432957.27,4743570.771 0.2 0 1102.235 | T62: 55 | U62: 55 | V62: 7432964.758,4743569.042
A63: 58 | B63: 7432952.516 | C63: 4743562.601 | D63: 1103.337 | N63: 56 | O63: 7432960.211,4743571.808 | R63: 8056 | S63: -TEXT J TL 7432957.03,4743570.036 0.2 0 1102.222 | T63: 56 | U63: 56 | V63: 7432960.211,4743571.808
A64: 59 | B64: 7432952.051 | C64: 4743561.742 | D64: 1103.54 | N64: 57 | O64: 7432959.249,4743570.645 | R64: 8057 | S64: -TEXT J TL 7432955.481,4743570.794 0.2 0 1103.015 | T64: 57 | U64: 57 | V64: 7432959.249,4743570.645
A65: 60 | B65: 7432956.367 | C65: 4743560.059 | D65: 1103.293 | N65: 58 | O65: 7432959.106,4743569.573 | R65: 8058 | S65: -TEXT J TL 7432956.561,4743567.94 0.2 0 1103.241 | T65: 58 | U65: 58 | V65: 7432959.106,4743569.573
A66: 61 | B66: 7432954.314 | C66: 4743560.894 | D66: 1103.25 | N66: 59 | O66: 7432958.301,4743568.605 | R66: 8059 | S66: -TEXT J TL 7432957.619,4743567.246 0.2 0 1103.605 | T66: 59 | U66: 59 | V66: 7432958.301,4743568.605
A67: 62 | B67: 7432932.901 | C67: 4743543.508 | D67: 1103.92 | N67: 60 | O67: 7432957.07,4743570.971 | R67: 8060 | S67: -TEXT J TL 7432955.058,4743566.76 0.2 0 1103.625 | T67: 60 | U67: 60 | V67: 7432957.07,4743570.971
A68: 63 | B68: 7432948.038 | C68: 4743559.563 | D68: 1103.633 | N68: 61 | O68: 7432956.83,4743570.236 | R68: 8061 | S68: -TEXT J TL 7432953.412,4743566.575 0.2 0 1103.442 | T68: 61 | U68: 61 | V68: 7432956.83,4743570.236
A69: 64 | B69: 7432945.407 | C69: 4743561.586 | D69: 1103.659 | N69: 62 | O69: 7432955.281,4743570.994 | R69: 8062 | S69: -TEXT J TL 7432951.829,4743563.594 0.2 0 1103.45 | T69: 62 | U69: 62 | V69: 7432955.281,4743570.994
A70: 65 | B70: 7432943.065 | C70: 4743563.259 | D70: 1103.724 | N70: 63 | O70: 7432956.361,4743568.14 | R70: 8063 | S70: -TEXT J TL 7432952.716,4743562.401 0.2 0 1103.337 | T70: 63 | U70: 63 | V70: 7432956.361,4743568.14
A71: 66 | B71: 7432940.427 | C71: 4743564.781 | D71: 1103.843 | N71: 64 | O71: 7432957.419,4743567.446 | R71: 8064 | S71: -TEXT J TL 7432952.251,4743561.542 0.2 0 1103.54 | T71: 64 | U71: 64 | V71: 7432957.419,4743567.446
A72: 67 | B72: 7432939.751 | C72: 4743565.016 | D72: 1103.915 | N72: 65 | O72: 7432954.858,4743566.96 | R72: 8065 | S72: -TEXT J TL 7432956.567,4743559.859 0.2 0 1103.293 | T72: 65 | U72: 65 | V72: 7432954.858,4743566.96
A73: 68 | B73: 7432939.54 | C73: 4743565.174 | D73: 1103.995 | J73: =IF(I73="","",VLOOKUP(I73,$A$8:$D$2002,2,TRUE)) ->  | K73: =IF(I73="","",VLOOKUP(I73,$A$8:$D$2002,3,TRUE)) ->  | N73: 66 | O73: 7432953.212,4743566.775 | R73: 8066 | S73: -TEXT J TL 7432954.514,4743560.694 0.2 0 1103.25 | T73: 66 | U73: 66 | V73: 7432953.212,4743566.775
A74: 69 | B74: 7432946.92 | C74: 4743578.267 | D74: 1103.786 | N74: 67 | O74: 7432951.629,4743563.794 | R74: 8067 | S74: -TEXT J TL 7432933.101,4743543.308 0.2 0 1103.92 | T74: 67 | U74: =IFERROR(SMALL($N$8:$N$14000,T74),"") -> 67 | V74: 7432951.629,4743563.794
A75: 70 | B75: 7432947.005 | C75: 4743578.151 | D75: 1103.735 | N75: 68 | O75: 7432952.516,4743562.601 | R75: 8068 | S75: -TEXT J TL 7432948.238,4743559.363 0.2 0 1103.633 | T75: 68 | U75: 68 | V75: 7432952.516,4743562.601
A76: 71 | B76: 7432947.559 | C76: 4743577.91 | D76: 1103.699 | N76: 69 | O76: 7432952.051,4743561.742 | R76: 8069 | S76: -TEXT J TL 7432945.607,4743561.386 0.2 0 1103.659 | T76: 69 | U76: 69 | V76: 7432952.051,4743561.742
A77: 72 | B77: 7432950.317 | C77: 4743576.349 | D77: 1103.621 | N77: 70 | O77: 7432956.367,4743560.059 | R77: 8070 | S77: -TEXT J TL 7432943.265,4743563.059 0.2 0 1103.724 | T77: 70 | U77: 70 | V77: 7432956.367,4743560.059
A78: 73 | B78: 7432952.699 | C78: 4743574.91 | D78: 1103.539 | N78: =IF(AND(O78="",O79=""),"",N77+1) -> 71 | O78: 7432954.314,4743560.894 | R78: 8071 | S78: -TEXT J TL 7432940.627,4743564.581 0.2 0 1103.843 | T78: 71 | U78: 71 | V78: =IF(AND(U78>0,VLOOKUP(U78,$N$8:$O$12000,2,TRUE)=0),"",VLOOKUP(U78,$N$8:$O$12000,2,TRUE)) -> 7432954.314,4743560.894
A79: 74 | B79: 7432953.028 | C79: 4743589.874 | D79: 1103.744 | N79: 72 | O79: 7432932.901,4743543.508 | R79: 8072 | S79: -TEXT J TL 7432939.951,4743564.816 0.2 0 1103.915 | T79: 72 | U79: 72 | V79: 7432932.901,4743543.508
A80: 75 | B80: 7432953.261 | C80: 4743589.67 | D80: 1103.676 | N80: 73 | O80: 7432948.038,4743559.563 | P80: =IF(AND(Q80="",Q81=""),"",P79+1) ->  | R80: 8073 | S80: -TEXT J TL 7432939.74,4743564.974 0.2 0 1103.995 | T80: 73 | U80: 73 | V80: 7432948.038,4743559.563
A81: 76 | B81: 7432954.081 | C81: 4743589.361 | D81: 1103.608 | N81: 74 | O81: 7432945.407,4743561.586 | Q81: =IF($Q$8="","",CONCATENATE("-TEXT J BL ",B74+$G$4,",",C74+$G$4," ",$G$4," ",$G$3," ",A74)) ->  | R81: 8074 | S81: -TEXT J TL 7432947.12,4743578.067 0.2 0 1103.786 | T81: 74 | U81: 74 | V81: 7432945.407,4743561.586
A82: 77 | B82: 7432956.804 | C82: 4743587.812 | D82: 1103.511 | N82: 75 | O82: 7432943.065,4743563.259 | R82: 8075 | S82: -TEXT J TL 7432947.205,4743577.951 0.2 0 1103.735 | T82: 75 | U82: 75 | V82: 7432943.065,4743563.259
A83: 78 | B83: 7432959.047 | C83: 4743586.187 | D83: 1103.396 | N83: 76 | O83: 7432940.427,4743564.781 | R83: 8076 | S83: -TEXT J TL 7432947.759,4743577.71 0.2 0 1103.699 | T83: 76 | U83: 76 | V83: 7432940.427,4743564.781
A84: 79 | B84: 7432961.611 | C84: 4743584.74 | D84: 1103.359 | N84: 77 | O84: 7432939.751,4743565.016 | R84: 8077 | S84: -TEXT J TL 7432950.517,4743576.149 0.2 0 1103.621 | T84: 77 | U84: 77 | V84: 7432939.751,4743565.016
A85: 80 | B85: 7432965.15 | C85: 4743581.781 | D85: 1102.992 | N85: 78 | O85: =IF(A73="","",CONCATENATE(B73,",",C73," ")) -> 7432939.54,4743565.174 | R85: 8078 | S85: -TEXT J TL 7432952.899,4743574.71 0.2 0 1103.539 | T85: 78 | U85: 78 | V85: 7432939.54,4743565.174
A86: 81 | B86: 7432968.603 | C86: 4743579.74 | D86: 1102.715 | L86: =IF(I74="","",CONCATENATE(J74,",",K74)) ->  | N86: 79 | O86: 7432946.92,4743578.267 | R86: 8079 | S86: -TEXT J TL 7432953.228,4743589.674 0.2 0 1103.744 | T86: 79 | U86: 79 | V86: 7432946.92,4743578.267
A87: 82 | B87: 7432959.62 | C87: 4743601.396 | D87: 1103.65 | N87: 80 | O87: 7432947.005,4743578.151 | R87: 8080 | S87: -TEXT J TL 7432953.461,4743589.47 0.2 0 1103.676 | T87: 80 | U87: 80 | V87: 7432947.005,4743578.151
A88: 83 | B88: 7432959.888 | C88: 4743601.142 | D88: 1103.521 | N88: 81 | O88: 7432947.559,4743577.91 | R88: 8081 | S88: -TEXT J TL 7432954.281,4743589.161 0.2 0 1103.608 | T88: 81 | U88: 81 | V88: 7432947.559,4743577.91
A89: 84 | B89: 7432960.479 | C89: 4743600.958 | D89: 1103.493 | N89: 82 | O89: 7432950.317,4743576.349 | R89: 8082 | S89: -TEXT J TL 7432957.004,4743587.612 0.2 0 1103.511 | T89: 82 | U89: 82 | V89: 7432950.317,4743576.349
A90: 85 | B90: 7432963.322 | C90: 4743599.743 | D90: 1103.404 | N90: 83 | O90: 7432952.699,4743574.91 | R90: =IF(AND(S90="",S91=""),"",R89+1) -> 8083 | S90: =IF(AND($A$4="",A83=""),"",IF(AND($A$4=1,A83=""),"",CONCATENATE("-TEXT J TL ",B83+$G$4,",",C83-$G$4," ",$G$4," ",$G$3," ",D83))) -> -TEXT J TL 7432959.247,4743585.987 0.2 0 1103.396 | T90: 83 | U90: 83 | V90: 7432952.699,4743574.91
A91: 86 | B91: 7432965.931 | C91: 4743598.33 | D91: 1103.333 | N91: 84 | O91: 7432953.028,4743589.874 | R91: 8084 | S91: -TEXT J TL 7432961.811,4743584.54 0.2 0 1103.359 | T91: 84 | U91: 84 | V91: 7432953.028,4743589.874
A92: 87 | B92: 7432970.575 | C92: 4743596.017 | D92: 1102.879 | N92: 85 | O92: 7432953.261,4743589.67 | R92: 8085 | S92: -TEXT J TL 7432965.35,4743581.581 0.2 0 1102.992 | T92: 85 | U92: 85 | V92: 7432953.261,4743589.67
A93: 88 | B93: 7432974.999 | C93: 4743593.463 | D93: 1102.117 | N93: 86 | O93: 7432954.081,4743589.361 | R93: 8086 | S93: -TEXT J TL 7432968.803,4743579.54 0.2 0 1102.715 | T93: 86 | U93: 86 | V93: 7432954.081,4743589.361
A94: 89 | B94: 7432980.896 | C94: 4743590.544 | D94: 1101.283 | N94: 87 | O94: 7432956.804,4743587.812 | R94: 8087 | S94: -TEXT J TL 7432959.82,4743601.196 0.2 0 1103.65 | T94: 87 | U94: 87 | V94: 7432956.804,4743587.812
A95: 90 | B95: 7432979.592 | C95: 4743597.229 | D95: 1101.384 | N95: 88 | O95: 7432959.047,4743586.187 | R95: 8088 | S95: -TEXT J TL 7432960.088,4743600.942 0.2 0 1103.521 | T95: 88 | U95: 88 | V95: 7432959.047,4743586.187
A96: 91 | B96: 7432973.132 | C96: 4743600.056 | D96: 1102.669 | N96: 89 | O96: 7432961.611,4743584.74 | R96: 8089 | S96: -TEXT J TL 7432960.679,4743600.758 0.2 0 1103.493 | T96: 89 | U96: 89 | V96: 7432961.611,4743584.74
A97: 92 | B97: 7432967.962 | C97: 4743602.509 | D97: 1103.311 | N97: 90 | O97: 7432965.15,4743581.781 | R97: 8090 | S97: -TEXT J TL 7432963.522,4743599.543 0.2 0 1103.404 | T97: 90 | U97: 90 | V97: 7432965.15,4743581.781
A98: 93 | B98: 7432965.294 | C98: 4743603.715 | D98: 1103.368 | N98: 91 | O98: 7432968.603,4743579.74 | R98: 8091 | S98: -TEXT J TL 7432966.131,4743598.13 0.2 0 1103.333 | T98: 91 | U98: 91 | V98: 7432968.603,4743579.74
A99: 94 | B99: 7432962.613 | C99: 4743604.411 | D99: 1103.435 | N99: 92 | O99: 7432959.62,4743601.396 | R99: 8092 | S99: -TEXT J TL 7432970.775,4743595.817 0.2 0 1102.879 | T99: 92 | U99: 92 | V99: 7432959.62,4743601.396
A100: 95 | B100: 7432961.981 | C100: 4743604.813 | D100: 1103.479 | N100: 93 | O100: 7432959.888,4743601.142 | R100: 8093 | S100: -TEXT J TL 7432975.199,4743593.263 0.2 0 1102.117 | T100: 93 | U100: 93 | V100: 7432959.888,4743601.142
A101: 96 | B101: 7432961.782 | C101: 4743604.93 | D101: 1103.672 | N101: 94 | O101: 7432960.479,4743600.958 | R101: 8094 | S101: -TEXT J TL 7432981.096,4743590.344 0.2 0 1101.283 | T101: 94 | U101: 94 | V101: 7432960.479,4743600.958
A102: 97 | B102: 7432960.892 | C102: 4743605.432 | D102: 1103.84 | N102: 95 | O102: 7432963.322,4743599.743 | R102: 8095 | S102: -TEXT J TL 7432979.792,4743597.029 0.2 0 1101.384 | T102: 95 | U102: 95 | V102: 7432963.322,4743599.743
A103: 98 | B103: 7432959.147 | C103: 4743606.34 | D103: 1104.055 | N103: 96 | O103: 7432965.931,4743598.33 | R103: 8096 | S103: -TEXT J TL 7432973.332,4743599.856 0.2 0 1102.669 | T103: 96 | U103: 96 | V103: 7432965.931,4743598.33
A104: 99 | B104: 7432953.853 | C104: 4743600.091 | D104: 1105.465 | N104: 97 | O104: 7432970.575,4743596.017 | R104: 8097 | S104: -TEXT J TL 7432968.162,4743602.309 0.2 0 1103.311 | T104: 97 | U104: 97 | V104: 7432970.575,4743596.017
A105: 100 | B105: 7432954.036 | C105: 4743594.358 | D105: 1105.22 | N105: 98 | O105: 7432974.999,4743593.463 | R105: 8098 | S105: -TEXT J TL 7432965.494,4743603.515 0.2 0 1103.368 | T105: 98 | U105: 98 | V105: 7432974.999,4743593.463
A106: 101 | B106: 7432948.326 | C106: 4743584.533 | D106: 1106.315 | N106: 99 | O106: 7432980.896,4743590.544 | R106: 8099 | S106: -TEXT J TL 7432962.813,4743604.211 0.2 0 1103.435 | T106: 99 | U106: 99 | V106: 7432980.896,4743590.544
A107: 102 | B107: 7432943.359 | C107: 4743575.801 | D107: 1106.957 | N107: 100 | O107: 7432979.592,4743597.229 | R107: 8100 | S107: -TEXT J TL 7432962.181,4743604.613 0.2 0 1103.479 | T107: 100 | U107: 100 | V107: 7432979.592,4743597.229
A108: 103 | B108: 7432937.887 | C108: 4743565.935 | D108: 1107.139 | N108: 101 | O108: 7432973.132,4743600.056 | R108: 8101 | S108: -TEXT J TL 7432961.982,4743604.73 0.2 0 1103.672 | T108: 101 | U108: 101 | V108: 7432973.132,4743600.056
A109: 104 | B109: 7432933.828 | C109: 4743557.824 | D109: 1107.122 | N109: 102 | O109: 7432967.962,4743602.509 | R109: 8102 | S109: -TEXT J TL 7432961.092,4743605.232 0.2 0 1103.84 | T109: 102 | U109: 102 | V109: 7432967.962,4743602.509
A110: 105 | B110: 7432928.375 | C110: 4743547.297 | D110: 1107.405 | N110: 103 | O110: 7432965.294,4743603.715 | R110: 8103 | S110: -TEXT J TL 7432959.347,4743606.14 0.2 0 1104.055 | T110: 103 | U110: 103 | V110: 7432965.294,4743603.715
A111: 106 | B111: 7432924.814 | C111: 4743539.969 | D111: 1107.381 | N111: 104 | O111: 7432962.613,4743604.411 | R111: 8104 | S111: -TEXT J TL 7432954.053,4743599.891 0.2 0 1105.465 | T111: 104 | U111: 104 | V111: 7432962.613,4743604.411
A112: 107 | B112: 7432921.292 | C112: 4743533.312 | D112: 1107.566 | N112: 105 | O112: 7432961.981,4743604.813 | R112: 8105 | S112: -TEXT J TL 7432954.236,4743594.158 0.2 0 1105.22 | T112: 105 | U112: 105 | V112: 7432961.981,4743604.813
A113: 108 | B113: 7432918.012 | C113: 4743526.114 | D113: 1107.537 | N113: 106 | O113: 7432961.782,4743604.93 | R113: 8106 | S113: -TEXT J TL 7432948.526,4743584.333 0.2 0 1106.315 | T113: 106 | U113: 106 | V113: 7432961.782,4743604.93
A114: 109 | B114: 7432915.155 | C114: 4743518.782 | D114: 1107.474 | N114: 107 | O114: 7432960.892,4743605.432 | R114: 8107 | S114: -TEXT J TL 7432943.559,4743575.601 0.2 0 1106.957 | T114: 107 | U114: 107 | V114: 7432960.892,4743605.432
A115: 110 | B115: 7432910.1 | C115: 4743522.902 | D115: 1110.82 | N115: 108 | O115: 7432959.147,4743606.34 | R115: 8108 | S115: -TEXT J TL 7432938.087,4743565.735 0.2 0 1107.139 | T115: 108 | U115: 108 | V115: 7432959.147,4743606.34
A116: 111 | B116: 7432909.506 | C116: 4743529.14 | D116: 1112.609 | N116: 109 | O116: 7432953.853,4743600.091 | R116: 8109 | S116: -TEXT J TL 7432934.028,4743557.624 0.2 0 1107.122 | T116: 109 | U116: 109 | V116: 7432953.853,4743600.091
A117: 112 | B117: 7432912.641 | C117: 4743534.603 | D117: 1111.991 | N117: 110 | O117: 7432954.036,4743594.358 | R117: 8110 | S117: -TEXT J TL 7432928.575,4743547.097 0.2 0 1107.405 | T117: 110 | U117: 110 | V117: 7432954.036,4743594.358
A118: 113 | B118: 7432916.007 | C118: 4743540.09 | D118: 1111.747 | N118: 111 | O118: 7432948.326,4743584.533 | R118: 8111 | S118: -TEXT J TL 7432925.014,4743539.769 0.2 0 1107.381 | T118: 111 | U118: 111 | V118: 7432948.326,4743584.533
A119: 114 | B119: 7432918.88 | C119: 4743543.473 | D119: 1111.264 | N119: 112 | O119: 7432943.359,4743575.801 | R119: 8112 | S119: -TEXT J TL 7432921.492,4743533.112 0.2 0 1107.566 | T119: 112 | U119: 112 | V119: 7432943.359,4743575.801
A120: 115 | B120: 7432922.136 | C120: 4743549.28 | D120: 1111.153 | N120: 113 | O120: 7432937.887,4743565.935 | R120: 8113 | S120: -TEXT J TL 7432918.212,4743525.914 0.2 0 1107.537 | T120: 113 | U120: 113 | V120: 7432937.887,4743565.935
A121: 116 | B121: 7432923.502 | C121: 4743555.45 | D121: 1111.786 | N121: 114 | O121: 7432933.828,4743557.824 | R121: 8114 | S121: -TEXT J TL 7432915.355,4743518.582 0.2 0 1107.474 | T121: 114 | U121: 114 | V121: 7432933.828,4743557.824
A122: 117 | B122: 7432926.723 | C122: 4743560.954 | D122: 1111.772 | N122: 115 | O122: 7432928.375,4743547.297 | R122: 8115 | S122: -TEXT J TL 7432910.3,4743522.702 0.2 0 1110.82 | T122: 115 | U122: 115 | V122: 7432928.375,4743547.297
A123: 118 | B123: 7432931.15 | C123: 4743563.397 | D123: 1109.507 | N123: 116 | O123: 7432924.814,4743539.969 | R123: 8116 | S123: -TEXT J TL 7432909.706,4743528.94 0.2 0 1112.609 | T123: 116 | U123: 116 | V123: 7432924.814,4743539.969
A124: 119 | B124: 7432931.697 | C124: 4743565.437 | D124: 1108.997 | N124: 117 | O124: 7432921.292,4743533.312 | R124: 8117 | S124: -TEXT J TL 7432912.841,4743534.403 0.2 0 1111.991 | T124: 117 | U124: 117 | V124: 7432921.292,4743533.312
A125: 120 | B125: 7432936.762 | C125: 4743569.512 | D125: 1108.328 | N125: 118 | O125: 7432918.012,4743526.114 | R125: 8118 | S125: -TEXT J TL 7432916.207,4743539.89 0.2 0 1111.747 | T125: 118 | U125: 118 | V125: 7432918.012,4743526.114
A126: 121 | B126: 7432940.329 | C126: 4743575.87 | D126: 1108.326 | N126: 119 | O126: 7432915.155,4743518.782 | R126: 8119 | S126: -TEXT J TL 7432919.08,4743543.273 0.2 0 1111.264 | T126: 119 | U126: 119 | V126: 7432915.155,4743518.782
A127: 122 | B127: 7432943.295 | C127: 4743581.811 | D127: 1108.358 | N127: 120 | O127: 7432910.1,4743522.902 | R127: 8120 | S127: -TEXT J TL 7432922.336,4743549.08 0.2 0 1111.153 | T127: 120 | U127: 120 | V127: 7432910.1,4743522.902
A128: 123 | B128: 7432946.196 | C128: 4743584.081 | D128: 1107.755 | N128: 121 | O128: 7432909.506,4743529.14 | R128: 8121 | S128: -TEXT J TL 7432923.702,4743555.25 0.2 0 1111.786 | T128: 121 | U128: 121 | V128: 7432909.506,4743529.14
A129: 124 | B129: 7432944.772 | C129: 4743588.721 | D129: 1110 | N129: 122 | O129: 7432912.641,4743534.603 | R129: 8122 | S129: -TEXT J TL 7432926.923,4743560.754 0.2 0 1111.772 | T129: 122 | U129: 122 | V129: 7432912.641,4743534.603
A130: 125 | B130: 7432940.41 | C130: 4743585.497 | D130: 1111.316 | N130: 123 | O130: 7432916.007,4743540.09 | R130: 8123 | S130: -TEXT J TL 7432931.35,4743563.197 0.2 0 1109.507 | T130: 123 | U130: 123 | V130: 7432916.007,4743540.09
A131: 126 | B131: 7432936.856 | C131: 4743582.366 | D131: 1111.587 | N131: 124 | O131: 7432918.88,4743543.473 | R131: 8124 | S131: -TEXT J TL 7432931.897,4743565.237 0.2 0 1108.997 | T131: 124 | U131: 124 | V131: 7432918.88,4743543.473
A132: 127 | B132: 7432935.793 | C132: 4743576.666 | D132: 1111.387 | N132: 125 | O132: 7432922.136,4743549.28 | R132: 8125 | S132: -TEXT J TL 7432936.962,4743569.312 0.2 0 1108.328 | T132: 125 | U132: 125 | V132: 7432922.136,4743549.28
A133: 128 | B133: 7432932.421 | C133: 4743573.507 | D133: 1112.269 | N133: 126 | O133: 7432923.502,4743555.45 | R133: 8126 | S133: -TEXT J TL 7432940.529,4743575.67 0.2 0 1108.326 | T133: 126 | U133: 126 | V133: 7432923.502,4743555.45
A134: 129 | B134: 7432928.891 | C134: 4743568.982 | D134: 1112.276 | N134: 127 | O134: 7432926.723,4743560.954 | R134: 8127 | S134: -TEXT J TL 7432943.495,4743581.611 0.2 0 1108.358 | T134: 127 | U134: 127 | V134: 7432926.723,4743560.954
A135: 130 | B135: 7432926.322 | C135: 4743563.181 | D135: 1112.699 | N135: 128 | O135: 7432931.15,4743563.397 | R135: 8128 | S135: -TEXT J TL 7432946.396,4743583.881 0.2 0 1107.755 | T135: 128 | U135: 128 | V135: 7432931.15,4743563.397
A136: 131 | B136: 7432923.11 | C136: 4743557.388 | D136: 1112.683 | N136: 129 | O136: 7432931.697,4743565.437 | R136: 8129 | S136: -TEXT J TL 7432944.972,4743588.521 0.2 0 1110 | T136: 129 | U136: 129 | V136: 7432931.697,4743565.437
A137: 132 | B137: 7432919.225 | C137: 4743551.701 | D137: 1114.053 | J137: =IF(I137="","",VLOOKUP(I137,$A$8:$D$2002,2,TRUE)) ->  | K137: =IF(I137="","",VLOOKUP(I137,$A$8:$D$2002,3,TRUE)) ->  | N137: 130 | O137: 7432936.762,4743569.512 | R137: 8130 | S137: -TEXT J TL 7432940.61,4743585.297 0.2 0 1111.316 | T137: 130 | U137: 130 | V137: 7432936.762,4743569.512
A138: 133 | B138: 7432913.072 | C138: 4743544.804 | D138: 1115.226 | N138: 131 | O138: 7432940.329,4743575.87 | R138: 8131 | S138: -TEXT J TL 7432937.056,4743582.166 0.2 0 1111.587 | T138: 131 | U138: =IFERROR(SMALL($N$8:$N$14000,T138),"") -> 131 | V138: 7432940.329,4743575.87
A139: 134 | B139: 7432908.19 | C139: 4743542.079 | D139: 1116.014 | N139: 132 | O139: 7432943.295,4743581.811 | R139: 8132 | S139: -TEXT J TL 7432935.993,4743576.466 0.2 0 1111.387 | T139: 132 | U139: 132 | V139: 7432943.295,4743581.811
A140: 135 | B140: 7432907.18 | C140: 4743529.276 | D140: 1115.548 | N140: 133 | O140: 7432946.196,4743584.081 | R140: 8133 | S140: -TEXT J TL 7432932.621,4743573.307 0.2 0 1112.269 | T140: 133 | U140: 133 | V140: 7432946.196,4743584.081
A141: 136 | B141: 7432902.968 | C141: 4743524.078 | D141: 1116.109 | N141: 134 | O141: 7432944.772,4743588.721 | R141: 8134 | S141: -TEXT J TL 7432929.091,4743568.782 0.2 0 1112.276 | T141: 134 | U141: 134 | V141: 7432944.772,4743588.721
A142: 137 | B142: 7432899.069 | C142: 4743514.842 | D142: 1116.142 | N142: =IF(AND(O142="",O143=""),"",N141+1) -> 135 | O142: 7432940.41,4743585.497 | R142: 8135 | S142: -TEXT J TL 7432926.522,4743562.981 0.2 0 1112.699 | T142: 135 | U142: 135 | V142: =IF(AND(U142>0,VLOOKUP(U142,$N$8:$O$12000,2,TRUE)=0),"",VLOOKUP(U142,$N$8:$O$12000,2,TRUE)) -> 7432940.41,4743585.497
A143: 138 | B143: 7432896.336 | C143: 4743522.754 | D143: 1117.741 | N143: 136 | O143: 7432936.856,4743582.366 | R143: 8136 | S143: -TEXT J TL 7432923.31,4743557.188 0.2 0 1112.683 | T143: 136 | U143: 136 | V143: 7432936.856,4743582.366
A144: 139 | B144: 7432899.191 | C144: 4743532.064 | D144: 1117.827 | N144: 137 | O144: 7432935.793,4743576.666 | P144: =IF(AND(Q144="",Q145=""),"",P143+1) ->  | R144: 8137 | S144: -TEXT J TL 7432919.425,4743551.501 0.2 0 1114.053 | T144: 137 | U144: 137 | V144: 7432935.793,4743576.666
A145: 140 | B145: 7432905.075 | C145: 4743544.392 | D145: 1117.174 | N145: 138 | O145: 7432932.421,4743573.507 | Q145: =IF($Q$8="","",CONCATENATE("-TEXT J BL ",B138+$G$4,",",C138+$G$4," ",$G$4," ",$G$3," ",A138)) ->  | R145: 8138 | S145: -TEXT J TL 7432913.272,4743544.604 0.2 0 1115.226 | T145: 138 | U145: 138 | V145: 7432932.421,4743573.507
A146: 141 | B146: 7432907.584 | C146: 4743551.753 | D146: 1116.807 | N146: 139 | O146: 7432928.891,4743568.982 | R146: 8139 | S146: -TEXT J TL 7432908.39,4743541.879 0.2 0 1116.014 | T146: 139 | U146: 139 | V146: 7432928.891,4743568.982
A147: 142 | B147: 7432911.553 | C147: 4743559.203 | D147: 1116.684 | N147: 140 | O147: 7432926.322,4743563.181 | R147: 8140 | S147: -TEXT J TL 7432907.38,4743529.076 0.2 0 1115.548 | T147: 140 | U147: 140 | V147: 7432926.322,4743563.181
A148: 143 | B148: 7432917.952 | C148: 4743568.49 | D148: 1115.626 | N148: 141 | O148: 7432923.11,4743557.388 | R148: 8141 | S148: -TEXT J TL 7432903.168,4743523.878 0.2 0 1116.109 | T148: 141 | U148: 141 | V148: 7432923.11,4743557.388
A149: 144 | B149: 7432922.186 | C149: 4743572.867 | D149: 1114.918 | N149: 142 | O149: =IF(A137="","",CONCATENATE(B137,",",C137," ")) -> 7432919.225,4743551.701 | R149: 8142 | S149: -TEXT J TL 7432899.269,4743514.642 0.2 0 1116.142 | T149: 142 | U149: 142 | V149: 7432919.225,4743551.701
A150: 145 | B150: 7432927.862 | C150: 4743579.473 | D150: 1113.897 | L150: =IF(I138="","",CONCATENATE(J138,",",K138)) ->  | N150: 143 | O150: 7432913.072,4743544.804 | R150: 8143 | S150: -TEXT J TL 7432896.536,4743522.554 0.2 0 1117.741 | T150: 143 | U150: 143 | V150: 7432913.072,4743544.804
A151: 146 | B151: 7432931.606 | C151: 4743583.542 | D151: 1113.252 | N151: 144 | O151: 7432908.19,4743542.079 | R151: 8144 | S151: -TEXT J TL 7432899.391,4743531.864 0.2 0 1117.827 | T151: 144 | U151: 144 | V151: 7432908.19,4743542.079
A152: 147 | B152: 7432934.896 | C152: 4743588.72 | D152: 1112.581 | N152: 145 | O152: 7432907.18,4743529.276 | R152: 8145 | S152: -TEXT J TL 7432905.275,4743544.192 0.2 0 1117.174 | T152: 145 | U152: 145 | V152: 7432907.18,4743529.276
A153: 148 | B153: 7432976.669 | C153: 4743604.45 | D153: 1101.994 | N153: 146 | O153: 7432902.968,4743524.078 | R153: 8146 | S153: -TEXT J TL 7432907.784,4743551.553 0.2 0 1116.807 | T153: 146 | U153: 146 | V153: 7432902.968,4743524.078
A154: 149 | B154: 7432970.872 | C154: 4743607.693 | D154: 1103.252 | N154: 147 | O154: 7432899.069,4743514.842 | R154: =IF(AND(S154="",S155=""),"",R153+1) -> 8147 | S154: =IF(AND($A$4="",A147=""),"",IF(AND($A$4=1,A147=""),"",CONCATENATE("-TEXT J TL ",B147+$G$4,",",C147-$G$4," ",$G$4," ",$G$3," ",D147))) -> -TEXT J TL 7432911.753,4743559.003 0.2 0 1116.684 | T154: 147 | U154: 147 | V154: 7432899.069,4743514.842
A155: 150 | B155: 7432968.639 | C155: 4743609.336 | D155: 1103.336 | N155: 148 | O155: 7432896.336,4743522.754 | R155: 8148 | S155: -TEXT J TL 7432918.152,4743568.29 0.2 0 1115.626 | T155: 148 | U155: 148 | V155: 7432896.336,4743522.754
A156: 151 | B156: 7432966.159 | C156: 4743611.198 | D156: 1103.377 | N156: 149 | O156: 7432899.191,4743532.064 | R156: 8149 | S156: -TEXT J TL 7432922.386,4743572.667 0.2 0 1114.918 | T156: 149 | U156: 149 | V156: 7432899.191,4743532.064
A157: 152 | B157: 7432965.611 | C157: 4743611.369 | D157: 1103.433 | N157: 150 | O157: 7432905.075,4743544.392 | R157: 8150 | S157: -TEXT J TL 7432928.062,4743579.273 0.2 0 1113.897 | T157: 150 | U157: 150 | V157: 7432905.075,4743544.392
A158: 153 | B158: 7432962.916 | C158: 4743612.808 | D158: 1103.885 | N158: 151 | O158: 7432907.584,4743551.753 | R158: 8151 | S158: -TEXT J TL 7432931.806,4743583.342 0.2 0 1113.252 | T158: 151 | U158: 151 | V158: 7432907.584,4743551.753
A159: 154 | B159: 7432960.361 | C159: 4743610.4 | D159: 1103.956 | N159: 152 | O159: 7432911.553,4743559.203 | R159: 8152 | S159: -TEXT J TL 7432935.096,4743588.52 0.2 0 1112.581 | T159: 152 | U159: 152 | V159: 7432911.553,4743559.203
A160: 155 | B160: 7432959.856 | C160: 4743619.529 | D160: 1104.937 | N160: 153 | O160: 7432917.952,4743568.49 | R160: 8153 | S160: -TEXT J TL 7432976.869,4743604.25 0.2 0 1101.994 | T160: 153 | U160: 153 | V160: 7432917.952,4743568.49
A161: 156 | B161: 7432957.571 | C161: 4743618.49 | D161: 1105.273 | N161: 154 | O161: 7432922.186,4743572.867 | R161: 8154 | S161: -TEXT J TL 7432971.072,4743607.493 0.2 0 1103.252 | T161: 154 | U161: 154 | V161: 7432922.186,4743572.867
A162: 157 | B162: 7432979.161 | C162: 4743618.862 | D162: 1103.08 | N162: 155 | O162: 7432927.862,4743579.473 | R162: 8155 | S162: -TEXT J TL 7432968.839,4743609.136 0.2 0 1103.336 | T162: 155 | U162: 155 | V162: 7432927.862,4743579.473
A163: 158 | B163: 7432977.677 | C163: 4743619.772 | D163: 1103.093 | N163: 156 | O163: 7432931.606,4743583.542 | R163: 8156 | S163: -TEXT J TL 7432966.359,4743610.998 0.2 0 1103.377 | T163: 156 | U163: 156 | V163: 7432931.606,4743583.542
A164: 159 | B164: 7432975.445 | C164: 4743621.661 | D164: 1103.215 | N164: 157 | O164: 7432934.896,4743588.72 | R164: 8157 | S164: -TEXT J TL 7432965.811,4743611.169 0.2 0 1103.433 | T164: 157 | U164: 157 | V164: 7432934.896,4743588.72
A165: 160 | B165: 7432973.175 | C165: 4743623.689 | D165: 1103.239 | N165: 158 | O165: 7432976.669,4743604.45 | R165: 8158 | S165: -TEXT J TL 7432963.116,4743612.608 0.2 0 1103.885 | T165: 158 | U165: 158 | V165: 7432976.669,4743604.45
A166: 161 | B166: 7432972.738 | C166: 4743624.037 | D166: 1103.21 | N166: 159 | O166: 7432970.872,4743607.693 | R166: 8159 | S166: -TEXT J TL 7432960.561,4743610.2 0.2 0 1103.956 | T166: 159 | U166: 159 | V166: 7432970.872,4743607.693
A167: 162 | B167: 7432971.689 | C167: 4743624.728 | D167: 1103.17 | N167: 160 | O167: 7432968.639,4743609.336 | R167: 8160 | S167: -TEXT J TL 7432960.056,4743619.329 0.2 0 1104.937 | T167: 160 | U167: 160 | V167: 7432968.639,4743609.336
A168: 163 | B168: 7432972.714 | C168: 4743625.956 | D168: 1103.235 | N168: 161 | O168: 7432966.159,4743611.198 | R168: 8161 | S168: -TEXT J TL 7432957.771,4743618.29 0.2 0 1105.273 | T168: 161 | U168: 161 | V168: 7432966.159,4743611.198
A169: 164 | B169: 7432970.929 | C169: 4743627.493 | D169: 1103.387 | N169: 162 | O169: 7432965.611,4743611.369 | R169: 8162 | S169: -TEXT J TL 7432979.361,4743618.662 0.2 0 1103.08 | T169: 162 | U169: 162 | V169: 7432965.611,4743611.369
A170: 165 | B170: 7432970.093 | C170: 4743626.069 | D170: 1103.353 | N170: 163 | O170: 7432962.916,4743612.808 | R170: 8163 | S170: -TEXT J TL 7432977.877,4743619.572 0.2 0 1103.093 | T170: 163 | U170: 163 | V170: 7432962.916,4743612.808
A171: 166 | B171: 7432970.559 | C171: 4743625.673 | D171: 1102.943 | N171: 164 | O171: 7432960.361,4743610.4 | R171: 8164 | S171: -TEXT J TL 7432975.645,4743621.461 0.2 0 1103.215 | T171: 164 | U171: 164 | V171: 7432960.361,4743610.4
A172: 167 | B172: 7432971.004 | C172: 4743625.343 | D172: 1102.932 | N172: 165 | O172: 7432959.856,4743619.529 | R172: 8165 | S172: -TEXT J TL 7432973.375,4743623.489 0.2 0 1103.239 | T172: 165 | U172: 165 | V172: 7432959.856,4743619.529
A173: 168 | B173: 7432968.088 | C173: 4743622.575 | D173: 1103.012 | N173: 166 | O173: 7432957.571,4743618.49 | R173: 8166 | S173: -TEXT J TL 7432972.938,4743623.837 0.2 0 1103.21 | T173: 166 | U173: 166 | V173: 7432957.571,4743618.49
A174: 169 | B174: 7432968.438 | C174: 4743622.448 | D174: 1102.996 | N174: 167 | O174: 7432979.161,4743618.862 | R174: 8167 | S174: -TEXT J TL 7432971.889,4743624.528 0.2 0 1103.17 | T174: 167 | U174: 167 | V174: 7432979.161,4743618.862
A175: 170 | B175: 7432965.857 | C175: 4743618.714 | D175: 1103.286 | N175: 168 | O175: 7432977.677,4743619.772 | R175: 8168 | S175: -TEXT J TL 7432972.914,4743625.756 0.2 0 1103.235 | T175: 168 | U175: 168 | V175: 7432977.677,4743619.772
A176: 171 | B176: 7432965.528 | C176: 4743618.902 | D176: 1103.373 | N176: 169 | O176: 7432975.445,4743621.661 | R176: 8169 | S176: -TEXT J TL 7432971.129,4743627.293 0.2 0 1103.387 | T176: 169 | U176: 169 | V176: 7432975.445,4743621.661
A177: 172 | B177: 7432965.458 | C177: 4743624.065 | D177: 1103.728 | N177: 170 | O177: 7432973.175,4743623.689 | R177: 8170 | S177: -TEXT J TL 7432970.293,4743625.869 0.2 0 1103.353 | T177: 170 | U177: 170 | V177: 7432973.175,4743623.689
A178: 173 | B178: 7432965.895 | C178: 4743624.666 | D178: 1103.789 | N178: 171 | O178: 7432972.738,4743624.037 | R178: 8171 | S178: -TEXT J TL 7432970.759,4743625.473 0.2 0 1102.943 | T178: 171 | U178: 171 | V178: 7432972.738,4743624.037
A179: 174 | B179: 7432983.293 | C179: 4743615.393 | D179: 1100.343 | N179: 172 | O179: 7432971.689,4743624.728 | R179: 8172 | S179: -TEXT J TL 7432971.204,4743625.143 0.2 0 1102.932 | T179: 172 | U179: 172 | V179: 7432971.689,4743624.728
A180: 175 | B180: 7432985.031 | C180: 4743617.203 | D180: 1100.243 | N180: 173 | O180: 7432972.714,4743625.956 | R180: 8173 | S180: -TEXT J TL 7432968.288,4743622.375 0.2 0 1103.012 | T180: 173 | U180: 173 | V180: 7432972.714,4743625.956
A181: 176 | B181: 7432989.684 | C181: 4743621.221 | D181: 1100.704 | N181: 174 | O181: 7432970.929,4743627.493 | R181: 8174 | S181: -TEXT J TL 7432968.638,4743622.248 0.2 0 1102.996 | T181: 174 | U181: 174 | V181: 7432970.929,4743627.493
A182: 177 | B182: 7432986.61 | C182: 4743625.898 | D182: 1102.19 | N182: 175 | O182: 7432970.093,4743626.069 | R182: 8175 | S182: -TEXT J TL 7432966.057,4743618.514 0.2 0 1103.286 | T182: 175 | U182: 175 | V182: 7432970.093,4743626.069
A183: 178 | B183: 7432983.325 | C183: 4743629.449 | D183: 1102.991 | N183: 176 | O183: 7432970.559,4743625.673 | R183: 8176 | S183: -TEXT J TL 7432965.728,4743618.702 0.2 0 1103.373 | T183: 176 | U183: 176 | V183: 7432970.559,4743625.673
A184: 179 | B184: 7432980.814 | C184: 4743631.214 | D184: 1103.092 | N184: 177 | O184: 7432971.004,4743625.343 | R184: 8177 | S184: -TEXT J TL 7432965.658,4743623.865 0.2 0 1103.728 | T184: 177 | U184: 177 | V184: 7432971.004,4743625.343
A185: 180 | B185: 7432978.365 | C185: 4743633.054 | D185: 1103.164 | N185: 178 | O185: 7432968.088,4743622.575 | R185: 8178 | S185: -TEXT J TL 7432966.095,4743624.466 0.2 0 1103.789 | T185: 178 | U185: 178 | V185: 7432968.088,4743622.575
A186: 181 | B186: 7432977.878 | C186: 4743633.263 | D186: 1103.176 | N186: 179 | O186: 7432968.438,4743622.448 | R186: 8179 | S186: -TEXT J TL 7432983.493,4743615.193 0.2 0 1100.343 | T186: 179 | U186: 179 | V186: 7432968.438,4743622.448
A187: 182 | B187: 7432977.707 | C187: 4743633.393 | D187: 1103.236 | N187: 180 | O187: 7432965.857,4743618.714 | R187: 8180 | S187: -TEXT J TL 7432985.231,4743617.003 0.2 0 1100.243 | T187: 180 | U187: 180 | V187: 7432965.857,4743618.714
A188: 183 | B188: 7432976.801 | C188: 4743633.912 | D188: 1103.513 | N188: 181 | O188: 7432965.528,4743618.902 | R188: 8181 | S188: -TEXT J TL 7432989.884,4743621.021 0.2 0 1100.704 | T188: 181 | U188: 181 | V188: 7432965.528,4743618.902
A189: 184 | B189: 7432983.258 | C189: 4743643.346 | D189: 1103.138 | N189: 182 | O189: 7432965.458,4743624.065 | R189: 8182 | S189: -TEXT J TL 7432986.81,4743625.698 0.2 0 1102.19 | T189: 182 | U189: 182 | V189: 7432965.458,4743624.065
A190: 185 | B190: 7432983.393 | C190: 4743643.357 | D190: 1103.052 | N190: 183 | O190: 7432965.895,4743624.666 | R190: 8183 | S190: -TEXT J TL 7432983.525,4743629.249 0.2 0 1102.991 | T190: 183 | U190: 183 | V190: 7432965.895,4743624.666
A191: 186 | B191: 7432983.841 | C191: 4743643.093 | D191: 1103.037 | N191: 184 | O191: 7432983.293,4743615.393 | R191: 8184 | S191: -TEXT J TL 7432981.014,4743631.014 0.2 0 1103.092 | T191: 184 | U191: 184 | V191: 7432983.293,4743615.393
A192: 187 | B192: 7432986.465 | C192: 4743641.315 | D192: 1102.943 | N192: 185 | O192: 7432985.031,4743617.203 | R192: 8185 | S192: -TEXT J TL 7432978.565,4743632.854 0.2 0 1103.164 | T192: 185 | U192: 185 | V192: 7432985.031,4743617.203
A193: 188 | B193: 7432989.143 | C193: 4743639.675 | D193: 1102.828 | N193: 186 | O193: 7432989.684,4743621.221 | R193: 8186 | S193: -TEXT J TL 7432978.078,4743633.063 0.2 0 1103.176 | T193: 186 | U193: 186 | V193: 7432989.684,4743621.221
A194: 189 | B194: 7432994.849 | C194: 4743635.689 | D194: 1102.297 | N194: 187 | O194: 7432986.61,4743625.898 | R194: 8187 | S194: -TEXT J TL 7432977.907,4743633.193 0.2 0 1103.236 | T194: 187 | U194: 187 | V194: 7432986.61,4743625.898
A195: 190 | B195: 7432997.572 | C195: 4743634.671 | D195: 1101.565 | N195: 188 | O195: 7432983.325,4743629.449 | R195: 8188 | S195: -TEXT J TL 7432977.001,4743633.712 0.2 0 1103.513 | T195: 188 | U195: 188 | V195: 7432983.325,4743629.449
A196: 191 | B196: 7433005.569 | C196: 4743645.185 | D196: 1101.193 | N196: 189 | O196: 7432980.814,4743631.214 | R196: 8189 | S196: -TEXT J TL 7432983.458,4743643.146 0.2 0 1103.138 | T196: 189 | U196: 189 | V196: 7432980.814,4743631.214
A197: 192 | B197: 7433002.569 | C197: 4743647.376 | D197: 1102.082 | N197: 190 | O197: 7432978.365,4743633.054 | R197: 8190 | S197: -TEXT J TL 7432983.593,4743643.157 0.2 0 1103.052 | T197: 190 | U197: 190 | V197: 7432978.365,4743633.054
A198: 193 | B198: 7432995.67 | C198: 4743651.409 | D198: 1102.664 | N198: 191 | O198: 7432977.878,4743633.263 | R198: 8191 | S198: -TEXT J TL 7432984.041,4743642.893 0.2 0 1103.037 | T198: 191 | U198: 191 | V198: 7432977.878,4743633.263
A199: 194 | B199: 7432993.159 | C199: 4743653.163 | D199: 1102.822 | N199: 192 | O199: 7432977.707,4743633.393 | R199: 8192 | S199: -TEXT J TL 7432986.665,4743641.115 0.2 0 1102.943 | T199: 192 | U199: 192 | V199: 7432977.707,4743633.393
A200: 195 | B200: 7432990.448 | C200: 4743654.757 | D200: 1102.956 | N200: 193 | O200: 7432976.801,4743633.912 | R200: 8193 | S200: -TEXT J TL 7432989.343,4743639.475 0.2 0 1102.828 | T200: 193 | U200: 193 | V200: 7432976.801,4743633.912
... 4300 more rows

Sheet Sheet2

Sheet Sheet3
